fUST/lending_fUST_20250713
["ID","MTS","AMOUNT","RATE_DAILY","PERIOD"]
[371698005,1752393053613,-528.53,0.00017808,2]
[371698006,1752393053623,-757.1,0.00017808,2]
[371698007,1752393053632,-460.0,0.00017808,2]
[371698008,1752393053642,-460.0,0.00017808,2]
[371698009,1752393053653,-674.94,0.00017808,2]
[371698010,1752393053663,-2291.4,0.00017808,2]
[371698011,1752393053673,-460.0,0.00017808,2]
[371698012,1752393053688,-460.0,0.00017808,2]
[371698013,1752393053699,-3687.19,0.00017808,2]
[371698014,1752393053708,-490.45,0.00017808,2]
[371698015,1752393053718,-460.0,0.00017808,2]
[371698016,1752393053728,-2911.17,0.00017808,2]
[371698017,1752393053738,-460.0,0.00017808,2]
[371698018,1752393053748,-1010.47,0.00017808,2]
[371698019,1752393053759,-1926.18,0.00017808,2]
[371698020,1752393053770,-1404.26,0.00017808,2]
[371698021,1752393053780,-460.0,0.00017808,2]
[371698022,1752393053789,-460.0,0.00017808,2]
[371698023,1752393053799,-1084.95,0.00017808,2]
[371698024,1752393053808,-489.99,0.00017808,2]
[371698025,1752393053818,-460.0,0.00017808,2]
[371698026,1752393053828,-460.0,0.00017808,2]
[371698027,1752393053838,-516.34,0.00017808,2]
[371698028,1752393053848,-460.0,0.00017808,2]
[371698029,1752393053857,-576.5770021,0.00017808,2]
[371698030,1752393053867,-11223.53434638,0.00017831,2]
[371698031,1752393053877,-332.18,0.00017833,3]
[371698032,1752393053886,-500.0,0.00017837,2]
[371698033,1752393053896,-500.0,0.0001792,2]
[371698034,1752393053906,-420.0,0.00017962,2]
[371698035,1752393053916,-500.0,0.00018003,2]
[371698036,1752393053925,-768.63544513,0.00018059,2]
[371698037,1752393053937,-151.0,0.00018082,2]
[371698038,1752393053947,-446.042417,0.00018082,2]
[371698039,1752393053956,-446.042417,0.00018082,2]
[371698040,1752393053965,-260.94696276,0.00018082,2]
[371698041,1752393053975,-460.0,0.00018082,2]
[371698042,1752393053985,-436.54,0.00018082,2]
[371698043,1752393053995,-460.0,0.00018082,2]
[371698044,1752393054006,-460.0,0.00018082,2]
[371698045,1752393054016,-460.0,0.00018082,2]
[371698046,1752393054026,-508.22,0.00018082,2]
[371698047,1752393054036,-460.0,0.00018082,2]
[371698048,1752393054046,-460.0,0.00018082,2]
[371698049,1752393054055,-460.0,0.00018082,2]
[371698050,1752393054065,-512.68,0.00018082,2]
[371698051,1752393054075,-481.73018947,0.00018082,2]
[371698052,1752393054085,-460.0,0.00018082,2]
[371698053,1752393054095,-449.90156638,0.00018082,2]
[371698054,1752393054105,-1204.54,0.00018082,2]
[371698055,1752393054115,-460.0,0.00018082,2]
[371698056,1752393054125,-1212.67,0.00018082,2]
[371698057,1752393054135,-460.0,0.00018082,2]
[371698058,1752393054144,-614.29,0.00018082,2]
[371698059,1752393054154,-460.0,0.00018082,2]
[371698060,1752393054163,-460.0,0.00018082,2]
[371698061,1752393054172,-732.85,0.00018082,2]
[371698062,1752393054182,-1266.56,0.00018082,2]
[371698063,1752393054192,-460.0,0.00018082,2]
[371698064,1752393054298,-3887.0,0.00018082,2]
[371698065,1752393054308,-460.0,0.00018082,2]
[371698066,1752393054317,-536.08441249,0.00018082,2]
[371698067,1752393054327,-886.2,0.00018082,2]
[371698068,1752393054336,-1086.38,0.00018082,2]
[371698069,1752393054346,-796.12,0.00018082,2]
[371698070,1752393054355,-528.53,0.00018082,2]
[371698071,1752393054364,-757.1,0.00018082,2]
[371698072,1752393054373,-460.0,0.00018082,2]
[371698073,1752393054381,-460.0,0.00018082,2]
[371698074,1752393054391,-674.94,0.00018082,2]
[371698075,1752393054399,-2291.4,0.00018082,2]
[371698076,1752393054409,-460.0,0.00018082,2]
[371698077,1752393054418,-460.0,0.00018082,2]
[371698078,1752393054428,-3687.19,0.00018082,2]
[371698079,1752393054438,-490.45,0.00018082,2]
[371698080,1752393054448,-460.0,0.00018082,2]
[371698081,1752393054458,-2911.17,0.00018082,2]
[371698082,1752393054467,-460.0,0.00018082,2]
[371698083,1752393054478,-1010.47,0.00018082,2]
[371698084,1752393054488,-1926.18,0.00018082,2]
[371698085,1752393054498,-1404.26,0.00018082,2]
[371698086,1752393054509,-460.0,0.00018082,2]
[371698087,1752393054519,-460.0,0.00018082,2]
[371698088,1752393054528,-1084.95,0.00018082,2]
[371698089,1752393054537,-489.99,0.00018082,2]
[371698090,1752393054547,-460.0,0.00018082,2]
[371698091,1752393054557,-460.0,0.00018082,2]
[371698092,1752393054567,-516.34,0.00018082,2]
[371698093,1752393054576,-460.0,0.00018082,2]
[371698094,1752393054586,-500.0,0.00018087,2]
[371698095,1752393054596,-2000.0,0.00018116,2]
[371698096,1752393054606,-866.47624733,0.00018119,2]
[371698097,1752393054615,-151.0,0.00018141,2]
[371698098,1752393054625,-151.0,0.00018141,2]
[371698099,1752393054635,-151.0,0.00018141,2]
[371698100,1752393054644,-11223.53434638,0.00018141,2]
[371698101,1752393054653,-500.0,0.0001817,2]
[371698102,1752393054663,-6912.642,0.00018187,2]
[371698103,1752393054673,-151.55350398,0.00018187,2]
[371698104,1752393054688,-25000.0,0.00018187,2]
[371698105,1752393054698,-207.4,0.00018187,2]
[371698106,1752393054708,-768.63544513,0.00018188,2]
[371698107,1752393054719,-679.35534273,0.00018242,2]
[371698108,1752393054729,-500.0,0.00018253,2]
[371698109,1752393054738,-500.0,0.00018337,2]
[371698110,1752393054748,-460.0,0.00018356,2]
[371698111,1752393054760,-460.0,0.00018356,2]
[371698112,1752393054770,-231.06,0.00018356,2]
[371698113,1752393054779,-208.87295739,0.00018356,2]
[371698114,1752393054789,-508.22,0.00018356,2]
[371698115,1752393054798,-460.0,0.00018356,2]
[371698116,1752393054808,-460.0,0.00018356,2]
[371698117,1752393054818,-460.0,0.00018356,2]
[371698118,1752393054827,-512.68,0.00018356,2]
[371698119,1752393054837,-460.0,0.00018356,2]
[371698120,1752393054847,-1204.54,0.00018356,2]
[371698121,1752393054856,-460.0,0.00018356,2]
[371698122,1752393054866,-1212.67,0.00018356,2]
[371698123,1752393054876,-460.0,0.00018356,2]
[371698124,1752393054886,-614.29,0.00018356,2]
[371698125,1752393054896,-460.0,0.00018356,2]
[371698126,1752393054906,-460.0,0.00018356,2]
[371698127,1752393054916,-732.85,0.00018356,2]
[371698128,1752393054926,-1266.56,0.00018356,2]
[371698129,1752393054936,-460.0,0.00018356,2]
[371698130,1752393054946,-3887.0,0.00018356,2]
[371698131,1752393054956,-886.2,0.00018356,2]
[371698132,1752393054965,-1086.38,0.00018356,2]
[371698133,1752393054975,-796.12,0.00018356,2]
[371698134,1752393054985,-528.53,0.00018356,2]
[371698135,1752393054994,-757.1,0.00018356,2]
[371698136,1752393055004,-460.0,0.00018356,2]
[371698137,1752393055014,-460.0,0.00018356,2]
[371698138,1752393055023,-674.94,0.00018356,2]
[371698139,1752393055033,-2291.4,0.00018356,2]
[371698140,1752393055043,-460.0,0.00018356,2]
[371698141,1752393055052,-460.0,0.00018356,2]
[371698142,1752393055062,-3687.19,0.00018356,2]
[371698143,1752393055071,-490.45,0.00018356,2]
[371698144,1752393055080,-460.0,0.00018356,2]
[371698145,1752393055089,-2911.17,0.00018356,2]
[371698146,1752393055099,-460.0,0.00018356,2]
[371698147,1752393055108,-1010.47,0.00018356,2]
[371698148,1752393055118,-1404.26,0.00018356,2]
[371698149,1752393055127,-1926.18,0.00018356,2]
[371698150,1752393055137,-460.0,0.00018356,2]
[371698151,1752393055146,-460.0,0.00018356,2]
[371698152,1752393055155,-1084.95,0.00018356,2]
[371698153,1752393055165,-489.99,0.00018356,2]
[371698154,1752393055174,-460.0,0.00018356,2]
[371698155,1752393055183,-460.0,0.00018356,2]
[371698156,1752393055193,-516.34,0.00018356,2]
[371698157,1752393055202,-460.0,0.00018356,2]
[371698158,1752393055211,-500.0,0.0001842,2]
[371698159,1752393055220,-11223.53434638,0.00018452,2]
[371698160,1752393055229,-500.0,0.00018503,2]
[371698161,1752393055239,-768.63544513,0.00018544,2]
[371698162,1752393055248,-151.0,0.00018579,2]
[371698163,1752393055258,-500.0,0.00018579,2]
[371698164,1752393055268,-151.0,0.00018579,2]
[371698165,1752393055277,-151.0,0.00018579,2]
[371698166,1752393055287,-239.06014223,0.00018579,2]
[371698167,1752393055297,-446.0,0.00018579,2]
[371698168,1752393055307,-265.89111439,0.00018579,2]
[371698169,1752393055316,-199.23623132,0.00018579,2]
[371698170,1752393055326,-151.0,0.00018579,2]
[371698171,1752393055342,-195.57710585,0.00018579,2]
[371698172,1752393055357,-151.0,0.00018579,2]
[371698173,1752393055372,-500.0,0.00018587,2]
[371698174,1752393055385,-151.0,0.00018606,2]
[371698175,1752393055399,-500.0,0.00018606,2]
[371698176,1752393055414,-151.0,0.00018606,2]
[371698177,1752393055427,-176.78491121,0.00018606,2]
[371698178,1752393055443,-446.0,0.00018606,2]
[371698179,1752393055457,-200.24290546,0.00018606,2]
[371698180,1752393055471,-202.45511596,0.00018606,2]
[371698181,1752393055487,-500.0,0.00018611,2]
[371698182,1752393055503,-501.77846167,0.00018611,2]
[371698183,1752393055516,-501.07849408,0.00018611,2]
[371698184,1752393055528,-500.0,0.00018611,2]
[371698185,1752393055541,-500.0,0.00018611,2]
[371698186,1752393055553,-500.0,0.00018611,2]
[371698187,1752393055566,-518.69085903,0.00018611,2]
[371698188,1752393055580,-502.44996152,0.00018611,2]
[371698189,1752393055592,-500.0,0.00018611,2]
[371698190,1752393055605,-500.87307024,0.00018611,2]
[371698191,1752393055616,-500.38530905,0.00018611,2]
[371698192,1752393055628,-331.52335736,0.0001863,2]
[371698193,1752393055640,-499.62,0.0001863,2]
[371698194,1752393055653,-508.22,0.0001863,2]
[371698195,1752393055666,-460.0,0.0001863,2]
[371698196,1752393055681,-460.0,0.0001863,2]
[371698197,1752393055694,-460.0,0.0001863,2]
[371698198,1752393055708,-512.68,0.0001863,2]
[371698199,1752393055722,-460.0,0.0001863,2]
[371698200,1752393055736,-1204.54,0.0001863,2]
[371698201,1752393055749,-460.0,0.0001863,2]
[371698202,1752393055761,-1212.67,0.0001863,2]
[371698203,1752393055772,-460.0,0.0001863,2]
[371698204,1752393055783,-614.29,0.0001863,2]
[371698205,1752393055796,-460.0,0.0001863,2]
[371698206,1752393055810,-460.0,0.0001863,2]
[371698207,1752393055824,-732.85,0.0001863,2]
[371698208,1752393055835,-1266.56,0.0001863,2]
[371698209,1752393055847,-460.0,0.0001863,2]
[371698210,1752393055859,-3887.0,0.0001863,2]
[371698211,1752393055872,-886.2,0.0001863,2]
[371698212,1752393055883,-1086.38,0.0001863,2]
[371698213,1752393055895,-796.12,0.0001863,2]
[371698214,1752393055906,-528.53,0.0001863,2]
[371698215,1752393055918,-757.1,0.0001863,2]
[371698216,1752393055930,-460.0,0.0001863,2]
[371698217,1752393055941,-358.83,0.0001863,2]
[371698218,1752393055954,-674.94,0.0001863,2]
[371698219,1752393055966,-2291.4,0.0001863,2]
[371698220,1752393055977,-460.0,0.0001863,2]
[371698221,1752393055989,-460.0,0.0001863,2]
[371698222,1752393056001,-3687.19,0.0001863,2]
[371698223,1752393056013,-490.45,0.0001863,2]
[371698224,1752393056025,-460.0,0.0001863,2]
[371698225,1752393056037,-2911.17,0.0001863,2]
[371698226,1752393056048,-460.0,0.0001863,2]
[371698227,1752393056060,-1010.47,0.0001863,2]
[371698228,1752393056072,-1404.26,0.0001863,2]
[371698229,1752393056083,-1926.18,0.0001863,2]
[371698230,1752393056095,-460.0,0.0001863,2]
[371698231,1752393056107,-430.91527266,0.0001863,2]
[371698232,1752393056119,-1084.95,0.0001863,2]
[371698233,1752393056131,-489.99,0.0001863,2]
[371698234,1752393056143,-460.0,0.0001863,2]
[371698235,1752393056155,-460.0,0.0001863,2]
[371698236,1752393056167,-516.34,0.0001863,2]
[371698237,1752393056178,-460.0,0.0001863,2]
[371698238,1752393056189,-576.5770021,0.0001863,2]
[371698239,1752393056201,-368.2812419,0.0001863,2]
[371698240,1752393056212,-151.0,0.00018634,2]
[371698241,1752393056222,-500.0,0.00018634,2]
[371698242,1752393056233,-295.79137799,0.00018634,2]
[371698243,1752393056244,-446.0,0.00018634,2]
[371698244,1752393056257,-151.86614284,0.00018661,2]
[371698245,1752393056268,-500.0,0.00018661,2]
[371698246,1752393056279,-446.0,0.00018661,2]
[371698247,1752393056291,-2007.57266618,0.00018664,2]
[371698248,1752393056302,-500.0,0.0001867,2]
[371698249,1752393056313,-500.0,0.00018689,2]
[371698250,1752393056324,-446.0,0.00018689,2]
[371698251,1752393056335,-500.0,0.00018716,2]
[371698252,1752393056346,-446.0,0.00018716,2]
[371698253,1752393056357,-500.0,0.00018728,2]
[371698254,1752393056368,-25000.0,0.00018735,2]
[371698255,1752393056379,-500.0,0.00018743,2]
[371698256,1752393056392,-446.0,0.00018743,2]
[371698257,1752393056402,-500.0,0.00018753,2]
[371698258,1752393056415,-500.0,0.00018756,2]
[371698259,1752393056426,-11223.53434638,0.00018762,2]
[371698260,1752393056437,-500.0,0.00018771,2]
[371698261,1752393056449,-446.0,0.00018771,2]
[371698262,1752393056461,-500.0,0.00018798,2]
[371698263,1752393056472,-446.0,0.00018798,2]
[371698264,1752393056483,-151.0,0.000188,2]
[371698265,1752393056495,-500.0,0.00018826,2]
[371698266,1752393056506,-446.0,0.00018826,2]
[371698267,1752393056518,-500.0,0.00018837,2]
[371698268,1752393056530,-768.63544513,0.00018839,2]
[371698269,1752393056541,-392.84798502,0.00018849,2]
[371698270,1752393056553,-500.0,0.00018853,2]
[371698271,1752393056565,-446.0,0.00018853,2]
[371698272,1752393056576,-1600.0,0.00018872,2]
[371698273,1752393056587,-866.47624733,0.00018873,2]
[371698274,1752393056599,-500.0,0.0001888,2]
[371698275,1752393056610,-446.0,0.0001888,2]
[371698276,1752393056622,-500.0,0.00018899,2]
[371698277,1752393056634,-500.0,0.00018899,2]
[371698278,1752393056644,-730.81136141,0.00018899,2]
[371698279,1752393056654,-456.60627229,0.00018899,2]
[371698280,1752393056808,-500.0,0.00018899,2]
[371698281,1752393056823,-730.81136141,0.00018899,2]
[371698282,1752393056833,-730.81136141,0.00018899,2]
[371698283,1752393056843,-730.81136141,0.00018899,2]
[371698284,1752393056852,-500.0,0.00018899,2]
[371698285,1752393056861,-730.81136141,0.00018899,2]
[371698286,1752393056869,-730.81136141,0.00018899,2]
[371698287,1752393056877,-500.0,0.00018899,2]
[371698288,1752393056884,-500.0,0.00018899,2]
[371698289,1752393056894,-730.81136141,0.00018899,2]
[371698290,1752393056903,-500.0,0.00018899,2]
[371698291,1752393056911,-500.0,0.00018899,2]
[371698292,1752393056921,-500.0,0.00018899,2]
[371698293,1752393056930,-500.0,0.00018899,2]
[371698294,1752393056939,-730.81136141,0.00018899,2]
[371698295,1752393056949,-730.81136141,0.00018899,2]
[371698296,1752393056958,-730.81136141,0.00018899,2]
[371698297,1752393056967,-730.81136141,0.00018899,2]
[371698298,1752393056976,-500.0,0.00018899,2]
[371698299,1752393056986,-730.81136141,0.00018899,2]
[371698300,1752393056995,-500.0,0.00018899,2]
[371698301,1752393057004,-730.81136141,0.00018899,2]
[371698302,1752393057015,-730.81136141,0.00018899,2]
[371698303,1752393057024,-730.81136141,0.00018899,2]
[371698304,1752393057033,-730.81136141,0.00018899,2]
[371698305,1752393057043,-500.0,0.00018899,2]
[371698306,1752393057052,-500.0,0.00018899,2]
[371698307,1752393057061,-730.81136141,0.00018899,2]
[371698308,1752393057071,-500.0,0.00018899,2]
[371698309,1752393057081,-151.0,0.000189,2]
[371698310,1752393057091,-971.88198325,0.000189,2]
[371698311,1752393057100,-151.0,0.00018904,2]
[371698312,1752393057110,-446.042417,0.00018904,2]
[371698313,1752393057119,-446.042417,0.00018904,2]
[371698314,1752393057129,-508.22,0.00018904,2]
[371698315,1752393057139,-460.0,0.00018904,2]
[371698316,1752393057148,-460.0,0.00018904,2]
[371698317,1752393057158,-460.0,0.00018904,2]
[371698318,1752393057167,-512.68,0.00018904,2]
[371698319,1752393057177,-460.0,0.00018904,2]
[371698320,1752393057186,-1204.54,0.00018904,2]
[371698321,1752393057195,-460.0,0.00018904,2]
[371698322,1752393057204,-1212.67,0.00018904,2]
[371698323,1752393057213,-460.0,0.00018904,2]
[371698324,1752393057223,-614.29,0.00018904,2]
[371698325,1752393057232,-460.0,0.00018904,2]
[371698326,1752393057242,-473.47939645,0.00018904,2]
[371698327,1752393057252,-151.0,0.00018904,2]
[371698328,1752393057263,-732.85,0.00018904,2]
[371698329,1752393057273,-1266.56,0.00018904,2]
[371698330,1752393057283,-460.0,0.00018904,2]
[371698331,1752393057294,-3887.0,0.00018904,2]
[371698332,1752393057303,-886.2,0.00018904,2]
[371698333,1752393057312,-1086.38,0.00018904,2]
[371698334,1752393057322,-796.12,0.00018904,2]
[371698335,1752393057332,-528.53,0.00018904,2]
[371698336,1752393057342,-757.1,0.00018904,2]
[371698337,1752393057351,-460.0,0.00018904,2]
[371698338,1752393057361,-151.0,0.00018904,2]
[371698339,1752393057371,-674.94,0.00018904,2]
[371698340,1752393057380,-151.0,0.00018904,2]
[371698341,1752393057390,-2291.4,0.00018904,2]
[371698342,1752393057402,-460.0,0.00018904,2]
[371698343,1752393057411,-460.0,0.00018904,2]
[371698344,1752393057422,-3687.19,0.00018904,2]
[371698345,1752393057431,-490.45,0.00018904,2]
[371698346,1752393057440,-460.0,0.00018904,2]
[371698347,1752393057450,-2911.17,0.00018904,2]
[371698348,1752393057460,-511.691998,0.00018904,2]
[371698349,1752393057474,-1010.47,0.00018904,2]
[371698350,1752393057483,-1404.26,0.00018904,2]
[371698351,1752393057493,-1926.18,0.00018904,2]
[371698352,1752393057503,-591.78617694,0.00018904,2]
[371698353,1752393057514,-1084.95,0.00018904,2]
[371698354,1752393057523,-489.99,0.00018904,2]
[371698355,1752393057533,-460.0,0.00018904,2]
[371698356,1752393057543,-460.0,0.00018904,2]
[371698357,1752393057552,-516.34,0.00018904,2]
[371698358,1752393057562,-460.0,0.00018904,2]
[371698359,1752393057572,-152.671126,0.00018904,2]
[371698360,1752393057582,-500.0,0.00018908,2]
[371698361,1752393057591,-446.0,0.00018908,2]
[371698362,1752393057601,-510.1601765,0.00018909,2]
[371698363,1752393057611,-501.11795172,0.00018909,2]
[371698364,1752393057620,-501.04929692,0.00018909,2]
[371698365,1752393057630,-500.0,0.0001892,2]
[371698366,1752393057640,-280.0,0.00018935,2]
[371698367,1752393057650,-446.0,0.00018935,2]
[371698368,1752393057660,-768.63544515,0.00018952,2]
[371698369,1752393057670,-446.0,0.00018963,2]
[371698370,1752393057682,-446.0,0.0001899,2]
[371698371,1752393057692,-151.0,0.00019,2]
[371698372,1752393057702,-500.0,0.00019003,2]
[371698373,1752393057712,-446.0,0.00019017,2]
[371698374,1752393057722,-428.9497036,0.00019041,2]
[371698375,1752393057732,-428.9497036,0.00019041,2]
[371698376,1752393057742,-428.9497036,0.00019041,2]
[371698377,1752393057752,-428.9497036,0.00019041,2]
[371698378,1752393057764,-446.0,0.00019045,2]
[371698379,1752393057774,-463.084,0.00019045,2]
[371698380,1752393057784,-151.0,0.00019072,2]
[371698381,1752393057794,-151.0,0.00019072,2]
[371698382,1752393057804,-267.026843,0.00019072,2]
[371698383,1752393057814,-151.0,0.00019072,2]
[371698384,1752393057824,-446.0,0.00019072,2]
[371698385,1752393057834,-11223.53434638,0.00019072,2]
[371698386,1752393057843,-446.0,0.000191,2]
[371698387,1752393057853,-151.0,0.000191,2]
[371698388,1752393057863,-446.0,0.00019127,2]
[371698389,1752393057874,-34891.86565638,0.00019136,2]
[371698390,1752393057884,-446.0,0.00019154,2]
[371698391,1752393057893,-1000.0,0.00019158,2]
[371698392,1752393057903,-506.39072393,0.00019158,2]
[371698393,1752393057912,-500.0,0.00019158,2]
[371698394,1752393057922,-1000.0,0.00019158,2]
[371698395,1752393057931,-508.22,0.00019178,2]
[371698396,1752393057941,-254.9155158,0.00019178,2]
[371698397,1752393057951,-460.0,0.00019178,2]
[371698398,1752393057963,-460.0,0.00019178,2]
[371698399,1752393057972,-460.0,0.00019178,2]
[371698400,1752393057983,-512.68,0.00019178,2]
[371698401,1752393057992,-460.0,0.00019178,2]
[371698402,1752393058003,-460.0,0.00019178,2]
[371698403,1752393058014,-467.33538975,0.00019178,2]
[371698404,1752393058023,-1204.54,0.00019178,2]
[371698405,1752393058033,-460.0,0.00019178,2]
[371698406,1752393058043,-1212.67,0.00019178,2]
[371698407,1752393058053,-460.0,0.00019178,2]
[371698408,1752393058062,-614.29,0.00019178,2]
[371698409,1752393058072,-460.0,0.00019178,2]
[371698410,1752393058085,-732.85,0.00019178,2]
[371698411,1752393058095,-1266.56,0.00019178,2]
[371698412,1752393058105,-460.0,0.00019178,2]
[371698413,1752393058115,-3887.0,0.00019178,2]
[371698414,1752393058125,-886.2,0.00019178,2]
[371698415,1752393058135,-1086.38,0.00019178,2]
[371698416,1752393058144,-796.12,0.00019178,2]
[371698417,1752393058155,-528.53,0.00019178,2]
[371698418,1752393058165,-757.1,0.00019178,2]
[371698419,1752393058176,-460.0,0.00019178,2]
[371698420,1752393058186,-674.94,0.00019178,2]
[371698421,1752393058197,-2291.4,0.00019178,2]
[371698422,1752393058206,-460.0,0.00019178,2]
[371698423,1752393058215,-349.83008146,0.00019178,2]
[371698424,1752393058225,-3687.19,0.00019178,2]
[371698425,1752393058235,-490.45,0.00019178,2]
[371698426,1752393058245,-460.0,0.00019178,2]
[371698427,1752393058254,-2591.98228044,0.00019178,2]
[371698428,1752393183269,5000.0,0.0001631,2]
[371698429,1752393277316,24900.0,0.00015455,2]
[371698430,1752393361343,245.52999069,0.00016237,2]
[371698431,1752393364454,222.002876,0.00015396,2]
[371698432,1752393456033,1359.74508836,0.0002521,120]
[371698433,1752393532138,512.0,0.0001631,2]
[371698434,1752393738424,276.0,0.00017222,7]
[371698435,1752393909104,154.849508,0.0002254,30]
[371698436,1752393909452,154.849508,0.00022496,30]
[371698437,1752393931624,214.83874181,0.00016238,2]
[371698439,1752394017565,487.77306,0.00013699,2]
[371698470,1752394105876,2436.50678994,0.00016238,2]
[371698479,1752394224695,-183.0,0.00016327,2]
[371698480,1752394224725,-300.0,0.00016327,2]
[371698481,1752394224750,-544.08,0.00016328,3]
[371698482,1752394224775,-544.08,0.00016328,3]
[371698483,1752394224800,-725.45,0.00016328,3]
[371698484,1752394224823,-1200.0,0.00016337,2]
[371698485,1752394224847,-370000.0,0.00016338,2]
[371698486,1752394224872,-17659.07792108,0.00016338,2]
[371698487,1752394228579,187.98389911,0.00016238,2]
[371698492,1752394232425,-362.72,0.00016428,3]
[371698494,1752394232435,-460.0,0.00016438,2]
[371698496,1752394232445,-460.0,0.00016438,2]
[371698499,1752394232455,-460.98913339,0.00016438,2]
[371698501,1752394232465,-460.0,0.00016438,2]
[371698503,1752394232475,-312.65866547,0.00016438,2]
[371698505,1752394232487,-147.34133453,0.00016438,2]
[371698507,1752394232496,-461.55620571,0.00016438,2]
[371698509,1752394232506,-460.0,0.00016438,2]
[371698511,1752394232515,-460.0,0.00016438,2]
[371698513,1752394232524,-460.0,0.00016438,2]
[371698515,1752394232535,-460.0,0.00016438,2]
[371698516,1752394232545,-460.0,0.00016438,2]
[371698517,1752394232555,-460.0,0.00016438,2]
[371698518,1752394232565,-463.38511713,0.00016438,2]
[371698519,1752394232576,-502.49764899,0.00016438,2]
[371698520,1752394232586,-460.0,0.00016438,2]
[371698521,1752394232596,-332.98329393,0.00016438,2]
[371698522,1752394232607,-460.0,0.00016438,2]
[371698523,1752394232618,-110.57403308,0.00016438,2]
[371698524,1752394232632,-349.42596692,0.00016438,2]
[371698525,1752394232642,-444.45244042,0.00016438,2]
[371698526,1752394232652,-199.98912632,0.00016438,2]
[371698527,1752394232661,-460.0,0.00016438,2]
[371698528,1752394232671,-511.85450376,0.00016438,2]
[371698529,1752394232682,-460.0,0.00016438,2]
[371698530,1752394232691,-460.0,0.00016438,2]
[371698531,1752394232702,-461.84124684,0.00016438,2]
[371698532,1752394232712,-460.0,0.00016438,2]
[371698533,1752394232723,-460.0,0.00016438,2]
[371698534,1752394232735,-461.99161862,0.00016438,2]
[371698535,1752394232745,-460.0,0.00016438,2]
[371698536,1752394232754,-390.94913893,0.00016438,2]
[371698537,1752394232765,-460.0,0.00016438,2]
[371698538,1752394232777,-460.0,0.00016438,2]
[371698539,1752394232786,-460.0,0.00016438,2]
[371698540,1752394232795,-438.22316345,0.00016438,2]
[371698541,1752394232809,-21.77683655,0.00016438,2]
[371698542,1752394232819,-460.0,0.00016438,2]
[371698543,1752394232828,-460.0,0.00016438,2]
[371698544,1752394232837,-460.0,0.00016438,2]
[371698545,1752394232854,-460.0,0.00016438,2]
[371698546,1752394232866,-460.0,0.00016438,2]
[371698547,1752394232876,-391.0295336,0.00016438,2]
[371698548,1752394232886,-460.0,0.00016438,2]
[371698549,1752394232896,-460.0,0.00016438,2]
[371698550,1752394232906,-460.0,0.00016438,2]
[371698551,1752394232916,-460.0,0.00016438,2]
[371698552,1752394232925,-460.0,0.00016438,2]
[371698553,1752394232935,-460.0,0.00016438,2]
[371698554,1752394232945,-460.0,0.00016438,2]
[371698555,1752394232955,-460.0,0.00016438,2]
[371698556,1752394232964,-460.0,0.00016438,2]
[371698557,1752394232980,-460.0,0.00016438,2]
[371698558,1752394232990,-114.57437116,0.00016438,2]
[371698559,1752394233002,-63.63625107,0.00016438,2]